fUST/lending_fUST_20250427
["ID","MTS","AMOUNT","RATE_DAILY","PERIOD"]
[359158623,1745751059876,-400.0,0.00020273,2]
[359158624,1745751059886,-400.67,0.00020273,2]
[359158625,1745751059896,-1915.12,0.00020273,2]
[359158626,1745751059906,-400.0,0.00020273,2]
[359158627,1745751059916,-400.0,0.00020273,2]
[359158628,1745751059926,-491.21,0.00020273,2]
[359158629,1745751059936,-2170.67,0.00020273,2]
[359158630,1745751059946,-505.6,0.00020547,2]
[359158631,1745751059955,-478.1,0.00020547,2]
[359158632,1745751059965,-400.0,0.00020547,2]
[359158633,1745751059975,-400.0,0.00020547,2]
[359158634,1745751059984,-400.0,0.00020547,2]
[359158635,1745751059993,-400.0,0.00020547,2]
[359158636,1745751060003,-400.0,0.00020547,2]
[359158637,1745751060012,-400.0,0.00020547,2]
[359158638,1745751060022,-633.36,0.00020547,2]
[359158639,1745751060032,-185.09824321,0.00020547,2]
[359158640,1745751060042,-433.38,0.00020547,2]
[359158641,1745751060050,-400.7,0.00020547,2]
[359158642,1745751060060,-400.0,0.00020547,2]
[359158643,1745751060069,-151.0,0.00020547,2]
[359158644,1745751060079,-445.9,0.00020547,2]
[359158645,1745751060312,-400.0,0.00020547,2]
[359158646,1745751060335,-243.74165698,0.00020547,2]
[359158647,1745751060347,-703.07,0.00020547,2]
[359158648,1745751060358,-400.0,0.00020547,2]
[359158649,1745751060368,-400.0,0.00020547,2]
[359158650,1745751060382,-400.0,0.00020547,2]
[359158651,1745751060392,-881.17,0.00020547,2]
[359158652,1745751060402,-638.65,0.00020547,2]
[359158653,1745751060412,-400.0,0.00020547,2]
[359158654,1745751060423,-1543.01,0.00020547,2]
[359158655,1745751060432,-873.47,0.00020547,2]
[359158656,1745751060442,-400.0,0.00020547,2]
[359158657,1745751060453,-400.0,0.00020547,2]
[359158658,1745751060463,-437.93,0.00020547,2]
[359158659,1745751060473,-566.93,0.00020547,2]
[359158660,1745751060482,-400.0,0.00020547,2]
[359158661,1745751060492,-887.45,0.00020547,2]
[359158662,1745751060502,-442.22,0.00020547,2]
[359158663,1745751060511,-632.66,0.00020547,2]
[359158664,1745751060521,-400.0,0.00020547,2]
[359158665,1745751060531,-362.37695479,0.00020547,2]
[359158666,1745751060541,-757.33,0.00020547,2]
[359158667,1745751060551,-2016.05,0.00020547,2]
[359158668,1745751060561,-400.0,0.00020547,2]
[359158669,1745751060571,-400.67,0.00020547,2]
[359158670,1745751060580,-1915.12,0.00020547,2]
[359158671,1745751060590,-400.0,0.00020547,2]
[359158672,1745751060600,-357.518635,0.00020547,2]
[359158673,1745751060609,-357.518635,0.00020547,2]
[359158674,1745751060619,-400.0,0.00020547,2]
[359158675,1745751060629,-491.21,0.00020547,2]
[359158676,1745751060639,-2170.67,0.00020547,2]
[359158677,1745751060648,-151.0,0.000208,3]
[359158678,1745751060658,-505.6,0.00020821,2]
[359158679,1745751060668,-400.0,0.00020821,2]
[359158680,1745751060679,-400.0,0.00020821,2]
[359158681,1745751060689,-400.0,0.00020821,2]
[359158682,1745751060699,-400.0,0.00020821,2]
[359158683,1745751060708,-400.0,0.00020821,2]
[359158684,1745751060718,-400.0,0.00020821,2]
[359158685,1745751060728,-633.36,0.00020821,2]
[359158686,1745751060737,-433.38,0.00020821,2]
[359158687,1745751060747,-400.7,0.00020821,2]
[359158688,1745751060757,-400.0,0.00020821,2]
[359158689,1745751060767,-445.9,0.00020821,2]
[359158690,1745751060778,-400.0,0.00020821,2]
[359158691,1745751060788,-703.07,0.00020821,2]
[359158692,1745751060798,-164.654826,0.00020821,2]
[359158693,1745751060808,-164.654826,0.00020821,2]
[359158694,1745751060818,-400.0,0.00020821,2]
[359158695,1745751060828,-400.0,0.00020821,2]
[359158696,1745751060838,-400.0,0.00020821,2]
[359158697,1745751060848,-881.17,0.00020821,2]
[359158698,1745751060858,-638.65,0.00020821,2]
[359158699,1745751060867,-400.0,0.00020821,2]
[359158700,1745751060878,-1543.01,0.00020821,2]
[359158701,1745751060888,-873.47,0.00020821,2]
[359158702,1745751060898,-400.0,0.00020821,2]
[359158703,1745751060907,-400.0,0.00020821,2]
[359158704,1745751060916,-295.006661,0.00020821,2]
[359158705,1745751060926,-437.93,0.00020821,2]
[359158706,1745751060936,-151.0,0.00020821,2]
[359158707,1745751060946,-566.93,0.00020821,2]
[359158708,1745751060956,-152.930726,0.00020821,2]
[359158709,1745751060965,-152.930726,0.00020821,2]
[359158710,1745751060974,-400.0,0.00020821,2]
[359158711,1745751060984,-887.45,0.00020821,2]
[359158712,1745751060993,-442.22,0.00020821,2]
[359158713,1745751061003,-632.66,0.00020821,2]
[359158714,1745751061012,-400.0,0.00020821,2]
[359158715,1745751061022,-757.33,0.00020821,2]
[359158716,1745751061031,-2016.05,0.00020821,2]
[359158717,1745751061040,-400.0,0.00020821,2]
[359158718,1745751061050,-400.67,0.00020821,2]
[359158719,1745751061060,-1915.12,0.00020821,2]
[359158720,1745751061069,-400.0,0.00020821,2]
[359158721,1745751061079,-400.0,0.00020821,2]
[359158722,1745751061088,-491.21,0.00020821,2]
[359158723,1745751061098,-2170.67,0.00020821,2]
[359158724,1745751061108,-600.0,0.00020822,2]
[359158725,1745751061119,-527.41719099,0.00020866,3]
[359158726,1745751061128,-239.97672,0.00020952,2]
[359158727,1745751061139,-239.97672,0.00020952,2]
[359158728,1745751061149,-151.0,0.00020952,2]
[359158729,1745751061159,-151.0,0.00020952,2]
[359158730,1745751061169,-151.0,0.00020952,2]
[359158731,1745751061178,-151.0,0.00020952,2]
[359158732,1745751061188,-151.0,0.00020952,2]
[359158733,1745751061198,-151.0,0.00020952,2]
[359158734,1745751061208,-1045.43850107,0.00020952,2]
[359158735,1745751061218,-500.0,0.00020952,2]
[359158736,1745751061229,-500.0,0.00020952,2]
[359158737,1745751061239,-500.0,0.00020952,2]
[359158738,1745751061250,-500.0,0.00020952,2]
[359158739,1745751061259,-500.0,0.00020952,2]
[359158740,1745751061269,-1000.0,0.00020952,2]
[359158741,1745751061280,-1000.0,0.00020952,2]
[359158742,1745751061289,-1000.0,0.00020952,2]
[359158743,1745751061299,-2000.0,0.00021,4]
[359158744,1745751061309,-505.6,0.00021095,2]
[359158745,1745751061318,-151.0,0.00021095,2]
[359158746,1745751061328,-400.0,0.00021095,2]
[359158747,1745751061338,-278.03,0.00021095,2]
[359158748,1745751061347,-400.0,0.00021095,2]
[359158749,1745751061358,-400.0,0.00021095,2]
[359158750,1745751061367,-400.0,0.00021095,2]
[359158751,1745751061379,-400.0,0.00021095,2]
[359158752,1745751061389,-633.36,0.00021095,2]
[359158753,1745751061398,-433.38,0.00021095,2]
[359158754,1745751061408,-400.7,0.00021095,2]
[359158755,1745751061418,-400.0,0.00021095,2]
[359158756,1745751061428,-445.9,0.00021095,2]
[359158757,1745751061438,-200.0,0.00021095,2]
[359158758,1745751061448,-703.07,0.00021095,2]
[359158759,1745751061458,-400.0,0.00021095,2]
[359158760,1745751061468,-400.0,0.00021095,2]
[359158761,1745751061478,-400.0,0.00021095,2]
[359158762,1745751061488,-881.17,0.00021095,2]
[359158763,1745751061498,-638.65,0.00021095,2]
[359158764,1745751061507,-400.0,0.00021095,2]
[359158765,1745751061517,-1543.01,0.00021095,2]
[359158766,1745751061527,-873.47,0.00021095,2]
[359158767,1745751061536,-400.0,0.00021095,2]
[359158768,1745751061546,-400.0,0.00021095,2]
[359158769,1745751061556,-437.93,0.00021095,2]
[359158770,1745751061566,-566.93,0.00021095,2]
[359158771,1745751061576,-400.0,0.00021095,2]
[359158772,1745751061585,-887.45,0.00021095,2]
[359158773,1745751061595,-442.22,0.00021095,2]
[359158774,1745751061604,-632.66,0.00021095,2]
[359158775,1745751061613,-400.0,0.00021095,2]
[359158776,1745751061622,-757.33,0.00021095,2]
[359158777,1745751061632,-2016.05,0.00021095,2]
[359158778,1745751061641,-400.0,0.00021095,2]
[359158779,1745751061650,-400.67,0.00021095,2]
[359158780,1745751061659,-1915.12,0.00021095,2]
[359158781,1745751061669,-400.0,0.00021095,2]
[359158782,1745751061679,-400.0,0.00021095,2]
[359158783,1745751061689,-491.21,0.00021095,2]
[359158784,1745751061698,-2170.67,0.00021095,2]
[359158785,1745751061708,-500.0,0.00021164,2]
[359158786,1745751061718,-545.0,0.00021261,2]
[359158787,1745751061727,-2247.0,0.00021261,2]
[359158788,1745751061736,-706.0,0.00021261,2]
[359158789,1745751061745,-150.062,0.00021261,2]
[359158790,1745751061754,-403.0,0.00021261,2]
[359158791,1745751061764,-150.0,0.00021261,2]
[359158792,1745751061774,-505.6,0.00021369,2]
[359158793,1745751061783,-400.0,0.00021369,2]
[359158794,1745751061793,-400.0,0.00021369,2]
[359158795,1745751061802,-450.16,0.00021369,2]
[359158796,1745751061811,-400.0,0.00021369,2]
[359158797,1745751061821,-400.0,0.00021369,2]
[359158798,1745751061831,-633.36,0.00021369,2]
[359158799,1745751061842,-433.38,0.00021369,2]
[359158800,1745751061852,-400.7,0.00021369,2]
[359158801,1745751061862,-427.12,0.00021369,2]
[359158802,1745751061871,-445.9,0.00021369,2]
[359158803,1745751061880,-703.07,0.00021369,2]
[359158804,1745751061889,-400.0,0.00021369,2]
[359158805,1745751061899,-400.0,0.00021369,2]
[359158806,1745751061909,-456.17,0.00021369,2]
[359158807,1745751061918,-881.17,0.00021369,2]
[359158808,1745751061927,-638.65,0.00021369,2]
[359158809,1745751061936,-252.11,0.00021369,2]
[359158810,1745751061946,-1543.01,0.00021369,2]
[359158811,1745751061955,-873.47,0.00021369,2]
[359158812,1745751061964,-400.0,0.00021369,2]
[359158813,1745751061974,-528.95956601,0.00021369,2]
[359158814,1745751061984,-437.93,0.00021369,2]
[359158815,1745751061993,-566.93,0.00021369,2]
[359158816,1745751062004,-515.94,0.00021369,2]
[359158817,1745751062014,-887.45,0.00021369,2]
[359158818,1745751062024,-442.22,0.00021369,2]
[359158819,1745751062034,-632.66,0.00021369,2]
[359158820,1745751062044,-400.0,0.00021369,2]
[359158821,1745751062054,-757.33,0.00021369,2]
[359158822,1745751062063,-2016.05,0.00021369,2]
[359158823,1745751062073,-353.82,0.00021369,2]
[359158824,1745751062084,-400.67,0.00021369,2]
[359158825,1745751062094,-1915.12,0.00021369,2]
[359158826,1745751062105,-400.0,0.00021369,2]
[359158827,1745751062116,-200.0,0.00021369,2]
[359158828,1745751062125,-491.21,0.00021369,2]
[359158829,1745751062136,-2170.67,0.00021369,2]
[359158830,1745751062148,-1000.0,0.00021452,2]
[359158831,1745751062158,-1000.0,0.00021452,2]
[359158832,1745751062169,-151.0,0.000215,4]
[359158833,1745751062179,-500.0,0.00021622,2]
[359158834,1745751062188,-505.6,0.00021643,2]
[359158835,1745751062198,-400.0,0.00021643,2]
[359158836,1745751062207,-400.0,0.00021643,2]
[359158837,1745751062217,-400.0,0.00021643,2]
[359158838,1745751062227,-400.0,0.00021643,2]
[359158839,1745751062236,-633.36,0.00021643,2]
[359158840,1745751062246,-433.38,0.00021643,2]
[359158841,1745751062256,-400.7,0.00021643,2]
[359158842,1745751062266,-445.9,0.00021643,2]
[359158843,1745751062276,-703.07,0.00021643,2]
[359158844,1745751062287,-400.0,0.00021643,2]
[359158845,1745751062297,-400.0,0.00021643,2]
[359158846,1745751062307,-881.17,0.00021643,2]
[359158847,1745751062317,-638.65,0.00021643,2]
[359158848,1745751062327,-1543.01,0.00021643,2]
[359158849,1745751062337,-873.47,0.00021643,2]
[359158850,1745751062347,-400.0,0.00021643,2]
[359158851,1745751062357,-437.93,0.00021643,2]
[359158852,1745751062367,-566.93,0.00021643,2]
[359158853,1745751062380,-887.45,0.00021643,2]
[359158854,1745751062393,-442.22,0.00021643,2]
[359158855,1745751062403,-632.66,0.00021643,2]
[359158856,1745751062413,-291.67,0.00021643,2]
[359158857,1745751062423,-757.33,0.00021643,2]
[359158858,1745751062432,-2016.05,0.00021643,2]
[359158859,1745751062442,-400.67,0.00021643,2]
[359158860,1745751062452,-1915.12,0.00021643,2]
[359158861,1745751062462,-400.0,0.00021643,2]
[359158862,1745751062471,-491.21,0.00021643,2]
[359158863,1745751062481,-2170.67,0.00021643,2]
[359158864,1745751062491,-527.41719099,0.00021659,3]
[359158865,1745751062500,-207.4,0.00021887,2]
[359158866,1745751062510,-505.6,0.00021917,2]
[359158867,1745751062519,-400.0,0.00021917,2]
[359158868,1745751062528,-400.0,0.00021917,2]
[359158869,1745751062537,-410.61,0.00021917,2]
[359158870,1745751062547,-400.0,0.00021917,2]
[359158871,1745751062557,-633.36,0.00021917,2]
[359158872,1745751062567,-433.38,0.00021917,2]
[359158873,1745751062576,-400.7,0.00021917,2]
[359158874,1745751062586,-445.9,0.00021917,2]
[359158875,1745751062595,-703.07,0.00021917,2]
[359158876,1745751062605,-400.0,0.00021917,2]
[359158877,1745751062614,-400.0,0.00021917,2]
[359158878,1745751062624,-881.17,0.00021917,2]
[359158879,1745751062633,-638.65,0.00021917,2]
[359158880,1745751062643,-1543.01,0.00021917,2]
[359158881,1745751062653,-873.47,0.00021917,2]
[359158882,1745751062663,-400.0,0.00021917,2]
[359158883,1745751062673,-437.93,0.00021917,2]
[359158884,1745751062682,-566.93,0.00021917,2]
[359158885,1745751062692,-887.45,0.00021917,2]
[359158886,1745751062701,-442.22,0.00021917,2]
[359158887,1745751062711,-632.66,0.00021917,2]
[359158888,1745751062720,-757.33,0.00021917,2]
[359158889,1745751062729,-2016.05,0.00021917,2]
[359158890,1745751062739,-400.67,0.00021917,2]
[359158891,1745751062748,-1915.12,0.00021917,2]
[359158892,1745751062757,-400.0,0.00021917,2]
[359158893,1745751062767,-491.21,0.00021917,2]
[359158894,1745751062776,-2170.67,0.00021917,2]
[359158895,1745751062786,-150.0,0.00021918,2]
[359158896,1745751062795,-1893.59,0.00022,2]
[359158897,1745751062805,-2000.0,0.00022,4]
[359158898,1745751062814,-1000.0,0.0002217,2]
[359158899,1745751062823,-151.0,0.00022191,7]
[359158900,1745751062833,-505.6,0.00022191,2]
[359158901,1745751062842,-400.0,0.00022191,2]
[359158902,1745751062851,-211.5,0.00022191,2]
[359158903,1745751062861,-400.0,0.00022191,2]
[359158904,1745751062870,-633.36,0.00022191,2]
[359158905,1745751062880,-433.38,0.00022191,2]
[359158906,1745751062889,-400.7,0.00022191,2]
[359158907,1745751062898,-445.9,0.00022191,2]
[359158908,1745751062908,-703.07,0.00022191,2]
[359158909,1745751062918,-311.49,0.00022191,2]
[359158910,1745751062927,-400.0,0.00022191,2]
[359158911,1745751062937,-881.17,0.00022191,2]
[359158912,1745751062947,-638.65,0.00022191,2]
[359158913,1745751062957,-1543.01,0.00022191,2]
[359158914,1745751062966,-873.47,0.00022191,2]
[359158915,1745751062976,-267.84,0.00022191,2]
[359158916,1745751062986,-437.93,0.00022191,2]
[359158917,1745751062995,-566.93,0.00022191,2]
[359158918,1745751063005,-887.45,0.00022191,2]
[359158919,1745751063015,-442.22,0.00022191,2]
[359158920,1745751063025,-632.66,0.00022191,2]
[359158921,1745751063036,-757.33,0.00022191,2]
[359158922,1745751063047,-2016.05,0.00022191,2]
[359158923,1745751063057,-400.67,0.00022191,2]
[359158924,1745751063067,-1915.12,0.00022191,2]
[359158925,1745751063078,-153.5,0.00022191,2]
[359158926,1745751063088,-357.518635,0.00022191,2]
[359158927,1745751063098,-357.518635,0.00022191,2]
[359158928,1745751063109,-491.21,0.00022191,2]
[359158929,1745751063119,-1037.36914771,0.00022191,2]
[359158930,1745751063248,-904.76880689,0.00015432,2]
[359158931,1745751063260,-373.89531288,0.00015432,2]
[359158932,1745751063273,-5720.00002,0.00015432,2]
[359158933,1745751063286,-715.97699208,0.00015432,2]
[359158934,1745751063298,-400.0,0.00015432,2]
[359158935,1745751063311,-41484.77377225,0.00015432,2]
[359158936,1745751063320,-1133.30085229,0.00022191,2]
[359158937,1745751063331,-500.0,0.0002226,2]
[359158938,1745751063341,-527.41719099,0.00022452,4]
[359158939,1745751063350,-505.6,0.00022465,2]
[359158940,1745751063360,-526.54,0.00022465,2]
[359158941,1745751063369,-400.0,0.00022465,2]
[359158942,1745751063383,-633.36,0.00022465,2]
[359158943,1745751063393,-433.38,0.00022465,2]
[359158944,1745751063402,-400.7,0.00022465,2]
[359158945,1745751063412,-151.0,0.00022465,7]
[359158946,1745751063422,-445.9,0.00022465,2]
[359158947,1745751063431,-703.07,0.00022465,2]
[359158948,1745751063441,-164.654826,0.00022465,7]
[359158949,1745751063451,-164.654826,0.00022465,7]
[359158950,1745751063462,-400.0,0.00022465,2]
[359158951,1745751063473,-881.17,0.00022465,2]
[359158952,1745751063484,-638.65,0.00022465,2]
[359158953,1745751063495,-1543.01,0.00022465,2]
[359158954,1745751063506,-873.47,0.00022465,2]
[359158955,1745751063517,-437.93,0.00022465,2]
[359158956,1745751063527,-566.93,0.00022465,2]
[359158957,1745751063537,-152.930726,0.00022465,7]
[359158958,1745751063547,-152.930726,0.00022465,7]
[359158959,1745751063557,-887.45,0.00022465,2]
[359158960,1745751063567,-442.22,0.00022465,2]
[359158961,1745751063578,-632.66,0.00022465,2]
[359158962,1745751063588,-757.33,0.00022465,2]
[359158963,1745751063715,-2016.05,0.00022465,2]
[359158964,1745751063729,-400.67,0.00022465,2]
[359158965,1745751063740,-1915.12,0.00022465,2]
[359158966,1745751063751,-491.21,0.00022465,2]
[359158967,1745751063762,-2170.67,0.00022465,2]
[359158968,1745751063773,-250.0,0.00022466,2]
[359158969,1745751063784,-900.0,0.00022466,2]
[359158970,1745751063795,-1258.00835272,0.00022718,2]
[359158971,1745751063805,-505.77,0.00022739,2]
[359158972,1745751063815,-155.412663,0.00022739,7]
[359158973,1745751063825,-151.0,0.00022739,7]
[359158974,1745751063835,-369.77,0.00022739,2]
[359158975,1745751063844,-633.55,0.00022739,2]
[359158976,1745751063854,-433.58,0.00022739,2]
[359158977,1745751063864,-400.74,0.00022739,2]
[359158978,1745751063874,-446.05634195,0.00022739,2]
[359158979,1745751063885,-703.11,0.00022739,2]
[359158980,1745751063896,-279.83,0.00022739,2]
[359158981,1745751063905,-881.2292884,0.00022739,2]
[359158982,1745751063916,-638.8,0.00022739,2]
[359158983,1745751063927,-1543.23165143,0.00022739,2]
[359158984,1745751063937,-873.64060363,0.00022739,2]
[359158985,1745751063947,-438.01,0.00022739,2]
[359158986,1745751063957,-566.98,0.00022739,2]
[359158987,1745751063966,-887.53,0.00022739,2]
[359158988,1745751063976,-442.29,0.00022739,2]
[359158989,1745751063986,-632.72,0.00022739,2]
[359158990,1745751063997,-757.54,0.00022739,2]
[359158991,1745751064006,-2016.2,0.00022739,2]
[359158992,1745751064017,-400.84,0.00022739,2]
[359158993,1745751064027,-1915.28,0.00022739,2]
[359158994,1745751064037,-491.29,0.00022739,2]
[359158995,1745751064048,-2170.68,0.00022739,2]
[359158996,1745751064059,-500.0,0.00022891,2]
[359158997,1745751064068,-500.0,0.00022912,2]
[359158998,1745751064078,-500.0,0.0002294,2]
[359158999,1745751064089,-500.0,0.00022962,2]
[359159000,1745751064099,-500.0,0.00022983,2]
[359159001,1745751064110,-160.0,0.00023,3]
[359159002,1745751064120,-421.1409203,0.00023,3]
[359159003,1745751064131,-160.0,0.00023,3]
[359159004,1745751064141,-2000.0,0.00023,4]
[359159005,1745751064152,-1200.0,0.00023008,2]
[359159006,1745751064162,-155.67110391,0.00023014,2]
[359159007,1745751064173,-500.0,0.00023043,2]
[359159008,1745751064183,-500.0,0.00023165,2]
[359159009,1745751064193,-169.221604,0.00023181,7]
[359159010,1745751064204,-169.221604,0.00023181,7]
[359159011,1745751064214,-151.0,0.00023181,7]
[359159012,1745751064226,-900.0,0.00023187,2]
[359159013,1745751064236,-555.816,0.00023192,15]
[359159014,1745751064246,-1200.0,0.0002322,2]
[359159015,1745751064256,-1200.0,0.00023228,2]
[359159016,1745751064267,-527.41719099,0.00023245,4]
[359159017,1745751064279,-215.0738,0.00023256,2]
[359159018,1745751064289,-900.0,0.00023276,2]
[359159019,1745751064300,-1200.0,0.00023288,2]
[359159020,1745751064310,-1200.0,0.00023323,2]
[359159021,1745751064321,-500.0,0.00023356,2]
[359159022,1745751064331,-900.0,0.00023372,2]
[359159023,1745751064341,-155.751,0.00023382,3]
[359159024,1745751064351,-900.0,0.00023423,2]
[359159025,1745751064362,-500.0,0.00023433,2]
[359159026,1745751064373,-1200.0,0.00023434,2]
[359159027,1745751064387,-151.0,0.00023444,7]
[359159028,1745751064397,-151.0,0.00023444,7]
[359159029,1745751064407,-1200.0,0.0002346,2]
[359159030,1745751064416,-500.0,0.0002357,2]
[359159031,1745751064426,-500.0,0.00023584,2]
[359159032,1745751064436,-900.0,0.00023613,2]
[359159033,1745751064446,-900.0,0.00023641,2]
[359159034,1745751064457,-900.0,0.00023666,2]
[359159035,1745751064468,-161.149912,0.000237,3]
[359159036,1745751064478,-500.0,0.00023707,2]
[359159037,1745751064488,-900.0,0.00023732,2]
[359159038,1745751064500,-1200.0,0.00023736,2]
[359159039,1745751064510,-1200.0,0.00023748,2]
[359159040,1745751064520,-508.87172265,0.00023772,2]
[359159041,1745751064531,-500.0,0.00023778,2]
[359159042,1745751064540,-500.0,0.000238,2]
[359159043,1745751064550,-500.0,0.00023881,2]
[359159044,1745751064560,-500.0,0.00023885,2]
[359159045,1745751064570,-900.0,0.00023923,2]
[359159046,1745751064579,-2000.0,0.00024,4]
[359159047,1745751064589,-1200.0,0.00024026,2]
[359159048,1745751064599,-527.41719099,0.00024038,5]
[359159049,1745751064608,-239.97672,0.00024038,7]
[359159050,1745751064618,-239.97672,0.00024038,7]
[359159051,1745751064627,-151.0,0.00024038,7]
[359159052,1745751064637,-151.0,0.00024038,7]
[359159053,1745751064646,-151.0,0.00024038,7]
[359159054,1745751064656,-151.0,0.00024038,7]
[359159055,1745751064665,-151.0,0.00024038,7]
[359159056,1745751064675,-900.0,0.00024053,2]
[359159057,1745751064684,-1200.0,0.0002409,2]
[359159058,1745751064694,-712.31,0.00024109,2]
[359159059,1745751064703,-712.31,0.00024109,2]
[359159060,1745751064713,-712.31,0.00024109,2]
[359159061,1745751064723,-712.31,0.00024109,2]
[359159062,1745751064732,-712.31,0.00024109,2]
[359159063,1745751064742,-712.31,0.00024109,2]
[359159064,1745751064751,-712.31,0.00024109,2]
[359159065,1745751064761,-712.31,0.00024109,2]
[359159066,1745751064771,-712.31,0.00024109,2]
[359159067,1745751064780,-712.31,0.00024109,2]
[359159068,1745751064790,-712.31,0.00024109,2]
[359159069,1745751064800,-712.31,0.00024109,2]
[359159070,1745751064810,-712.31,0.00024109,2]
[359159071,1745751064820,-712.31,0.00024109,2]
[359159072,1745751064830,-712.31,0.00024109,2]
[359159073,1745751064840,-712.31,0.00024109,2]
[359159074,1745751064849,-712.31,0.00024109,2]
[359159075,1745751064859,-712.31,0.00024109,2]
[359159076,1745751064869,-712.31,0.00024109,2]
[359159077,1745751064878,-712.31,0.00024109,2]
[359159078,1745751064888,-712.31,0.00024109,2]
[359159079,1745751064898,-712.31,0.00024109,2]
[359159080,1745751064908,-712.31,0.00024109,2]
[359159081,1745751064918,-712.42340271,0.00024109,2]
[359159082,1745751064928,-1200.0,0.0002411,2]
[359159083,1745751064938,-1200.0,0.00024114,2]
[359159084,1745751064947,-500.326,0.00024133,2]
[359159085,1745751064957,-2200.0,0.00024133,2]
[359159086,1745751064967,-500.0,0.00024211,2]
[359159087,1745751064976,-500.0,0.00024248,2]
[359159088,1745751064986,-403.0,0.00024261,2]
[359159089,1745751064996,-1200.0,0.00024319,2]
[359159090,1745751065006,-1200.0,0.0002432,2]
[359159091,1745751065015,-500.0,0.00024409,2]
[359159092,1745751065025,-900.0,0.00024482,2]
[359159093,1745751065035,-900.0,0.00024495,2]
[359159094,1745751065044,-500.0,0.000245,2]
[359159095,1745751065054,-500.0,0.000245,2]
[359159096,1745751065063,-500.0,0.000245,2]
[359159097,1745751065073,-500.0,0.000245,2]
[359159098,1745751065082,-500.0,0.000245,2]
[359159099,1745751065092,-1200.0,0.00024556,2]
[359159100,1745751065102,-900.0,0.0002456,2]
[359159101,1745751065112,-900.0,0.00024583,2]
[359159102,1745751065122,-900.0,0.0002459,2]
[359159103,1745751065132,-223.0315306,0.00024625,2]
[359159104,1745751065142,-441.0216726,0.0002465,2]
[359159105,1745751065152,-151.0,0.00024658,7]
[359159106,1745751065161,-151.0,0.00024658,7]
[359159107,1745751065171,-151.0,0.00024658,7]
[359159108,1745751065181,-151.0,0.00024658,7]
[359159109,1745751065191,-151.0,0.00024658,7]
[359159110,1745751065200,-151.0,0.00024658,7]
[359159111,1745751065210,-151.0,0.00024658,7]
[359159112,1745751065220,-151.0,0.00024658,7]
[359159113,1745751065230,-153.766434,0.00024658,7]
[359159114,1745751065240,-500.0,0.00024658,2]
[359159115,1745751065250,-500.0,0.00024658,2]
[359159116,1745751065260,-275.26127158,0.00024658,2]
[359159117,1745751065270,-500.0,0.00024693,2]
[359159118,1745751065279,-1200.0,0.00024705,2]
[359159119,1745751065289,-4624.983028,0.0002475,2]
[359159120,1745751065300,-151.0,0.0002475,7]
[359159121,1745751065311,-500.0,0.00024768,2]
[359159122,1745751065321,-200.21044313,0.0002479,2]